fUSD/lending_fUSD_20240626
["ID","MTS","AMOUNT","RATE_DAILY","PERIOD"]
[330455769,1719423033477,-2219.823,0.00020069,2]
[330455770,1719423033486,-1304.0,0.00020069,2]
[330455771,1719423033496,-1985.0,0.00020069,2]
[330455772,1719423033505,-3202.0,0.00020069,2]
[330455773,1719423033514,-547.0,0.00020069,2]
[330455774,1719423033523,-1069.0,0.00020069,2]
[330455775,1719423033532,-306.867,0.00020069,2]
[330455776,1719423033541,-1273.0,0.00020069,2]
[330455777,1719423033551,-5164.0,0.00020069,2]
[330455778,1719423033560,-1830.0,0.00020069,2]
[330455779,1719423033569,-1655.0,0.00020069,2]
[330455780,1719423033579,-4143.65,0.00020069,2]
[330455781,1719423033588,-1197.0,0.00020069,2]
[330455782,1719423033597,-1546.02553584,0.00020134,2]
[330455783,1719423033607,-451.2,0.00020175,2]
[330455784,1719423033616,-1090.54732043,0.0002035,2]
[330455785,1719423033626,-1546.02553584,0.00020479,2]
[330455786,1719423033635,-412.4335423,0.00020479,2]
[330455787,1719423033643,-305.43945511,0.00020599,2]
[330455788,1719423033653,-173.51993793,0.00020698,2]
[330455789,1719423033664,-245000.0,0.00020699,2]
[330455790,1719423033673,-500.0,0.00020699,2]
[330455791,1719423033682,-187.46379308,0.00020723,2]
[330455792,1719423033691,-332.95012389,0.00020788,2]
[330455793,1719423033700,-157.272451,0.00020791,2]
[330455794,1719423033710,-189.967853,0.00020791,2]
[330455795,1719423033720,-721.561753,0.00020791,2]
[330455796,1719423033730,-178.223548,0.00020791,2]
[330455797,1719423033739,-161.090666,0.00020791,2]
[330455798,1719423033748,-9051.0489291,0.000208,3]
[330455799,1719423033757,-1546.02553584,0.00020823,2]
[330455800,1719423033765,-412.4335423,0.00020823,2]
[330455801,1719423033774,-724.99413129,0.00020999,2]
[330455802,1719423033783,-1250.0,0.00021,2]
[330455803,1719423033792,-465.5729,0.00021008,2]
[330455804,1719423033801,-156.216,0.00021042,2]
[330455805,1719423033810,-217.81272639,0.0002105,2]
[330455806,1719423033819,-721.561753,0.00021051,2]
[330455807,1719423033828,-226.97511983,0.00021164,2]
[330455808,1719423033837,-226.97511983,0.00021164,2]
[330455809,1719423033846,-150.0,0.00021165,2]
[330455810,1719423033856,-1546.02553584,0.00021168,2]
[330455811,1719423033865,-412.4335423,0.00021168,2]
[330455812,1719423033875,-721.561753,0.00021311,2]
[330455813,1719423033884,-1546.02553584,0.00021512,2]
[330455814,1719423033893,-412.4335423,0.00021512,2]
[330455815,1719423033902,-1054.20873751,0.0002157,2]
[330455816,1719423033913,-684.35506936,0.0002157,2]
[330455817,1719423033922,-721.561753,0.00021571,2]
[330455818,1719423033932,-1251.85328804,0.00021622,2]
[330455819,1719423033941,-402.3,0.00021644,2]
[330455820,1719423033951,-164.15,0.00021644,2]
[330455821,1719423033960,-9219.36790156,0.00021681,2]
[330455822,1719423033969,-532.71676313,0.00021726,2]
[330455823,1719423033979,-186.51762411,0.00021734,2]
[330455824,1719423033988,-525.88970109,0.00021735,2]
[330455825,1719423033998,-296.51463104,0.00021735,2]
[330455826,1719423034007,-259.74552115,0.00021744,2]
[330455827,1719423034017,-305.43945511,0.00021745,2]
[330455828,1719423034026,-320.62309046,0.00021789,2]
[330455829,1719423034036,-887.93932126,0.00021789,2]
[330455830,1719423034045,-203.66081484,0.00021799,2]
[330455831,1719423034055,-283.50525412,0.00021799,2]
[330455832,1719423034065,-519.99643975,0.00021799,2]
[330455833,1719423034074,-647.07170086,0.00021799,2]
[330455834,1719423034084,-7500.0,0.000218,2]
[330455835,1719423034093,-309.98464011,0.000218,2]
[330455836,1719423034104,-185.46399961,0.00021808,2]
[330455837,1719423034113,-1000.0,0.00021813,2]
[330455838,1719423034123,-370.49091679,0.00021817,2]
[330455839,1719423034132,-265.41435654,0.00021818,2]
[330455840,1719423034142,-169.55934429,0.00021818,2]
[330455841,1719423034151,-447.84798099,0.00021818,2]
[330455842,1719423034162,-20308.19362292,0.00021818,2]
[330455843,1719423034171,-550.23377614,0.00021818,2]
[330455844,1719423034180,-2007.7444318,0.00021818,2]
[330455845,1719423034190,-881.01519372,0.00021818,2]
[330455846,1719423034200,-500.0,0.0002182,2]
[330455847,1719423034209,-970.0,0.00021821,2]
[330455848,1719423034219,-500.0,0.00021821,2]
[330455849,1719423034228,-200.0,0.00021821,2]
[330455850,1719423034237,-300.0,0.0002183,2]
[330455851,1719423034246,-622.21690927,0.0002183,2]
[330455852,1719423034255,-721.561753,0.00021831,2]
[330455853,1719423034266,-1546.02553584,0.00021857,2]
[330455854,1719423034276,-412.4335423,0.00021857,2]
[330455855,1719423034285,-1436.06480269,0.00021899,4]
[330455856,1719423034295,-529.80766427,0.00021899,2]
[330455857,1719423034304,-307.9442,0.000219,2]
[330455858,1719423034313,-185.61172509,0.000219,2]
[330455859,1719423034323,-1957.9363384,0.000219,2]
[330455860,1719423034331,-177.40630072,0.000219,2]
[330455861,1719423034345,-440.2968,0.000219,2]
[330455862,1719423034354,-168.27772144,0.000219,2]
[330455863,1719423034363,-161.3672115,0.000219,2]
[330455864,1719423034373,-174.08,0.00021918,2]
[330455865,1719423034383,-172.55,0.00021918,2]
[330455866,1719423034393,-725.36,0.00021918,2]
[330455867,1719423034402,-662.407515,0.00021918,2]
[330455868,1719423034412,-155.0,0.00021977,2]
[330455869,1719423034423,-155.0,0.00021977,2]
[330455870,1719423034433,-25243.21790763,0.00021977,2]
[330455871,1719423034443,-308.80132183,0.00021989,2]
[330455872,1719423034452,-339.45186376,0.00021989,2]
[330455873,1719423034462,-1957.93633831,0.0002199,2]
[330455874,1719423034472,-185.46399961,0.0002199,2]
[330455875,1719423034482,-820.69694511,0.00021996,2]
[330455876,1719423034491,-1000.0,0.00021997,2]
[330455877,1719423034501,-1000.0,0.00021997,2]
[330455878,1719423034510,-798.69866002,0.00021997,2]
[330455879,1719423034519,-420.78696864,0.00021999,2]
[330455880,1719423034529,-303.01766019,0.00021999,2]
[330455881,1719423034538,-204551.61528733,0.00022,4]
[330455882,1719423034552,-444569.82348668,0.00022,4]
[330455883,1719423034563,-481028.87240135,0.00022,4]
[330455884,1719423034616,-2470.24297497,0.00022,4]
[330455885,1719423034628,-1528.35103245,0.00022,4]
[330455886,1719423034639,-287.37338502,0.00022,4]
[330455887,1719423034649,-991.38567962,0.00022,4]
[330455888,1719423034660,-648.56859254,0.00022,4]
[330455889,1719423034671,-5845.47387287,0.00022,4]
[330455890,1719423034682,-757.07841049,0.00022,4]
[330455891,1719423034692,-539.69020108,0.00022,4]
[330455892,1719423034703,-259.1,0.00022,4]
[330455893,1719423034714,-4606.79386935,0.00022,4]
[330455894,1719423034791,-1579.80960355,0.00022,4]
[330455895,1719423034802,-2587.02208,0.00022,4]
[330455896,1719423034814,-810.42798062,0.00022,4]
[330455897,1719423034825,-275245.44220946,0.00022,4]
[330455920,1719423038063,-155.20249672,0.00018014,2]
[330455922,1719423038074,-676.67327125,0.0001942,2]
[330455924,1719423038085,-1661.0,0.00020069,2]
[330455925,1719423038095,-460.693,0.00020069,2]
[330455926,1719423038106,-5000.0,0.00020698,2]
[330455927,1719423038117,-158.86009896,0.00021799,2]
[330455928,1719423038127,-547.13129674,0.00021996,2]
[330455929,1719423038137,-44662.69219152,0.00022,7]
[330455930,1719423038151,-32810.0,0.00022,7]
[330455931,1719423038165,-49583.75289851,0.00022,7]
[330455932,1719423038178,-6272.35529764,0.00022,7]
[330455933,1719423038370,-86796.27233677,0.00022,7]
[330455934,1719423038382,-830.27720472,0.00022,5]
[330455935,1719423038395,-5090.66526519,0.00022,4]
[330455936,1719423038409,-1134.70787623,0.00022,4]
[330455937,1719423038422,-250.81084098,0.00022,4]
[330455938,1719423038436,-2348.50765704,0.00022,4]
[330455939,1719423038451,-541.74,0.00022,4]
[330455940,1719423038463,-712.39138912,0.00022,4]
[330455941,1719423038476,-17758.98735378,0.00022,4]
[330455942,1719423038489,-1631.36205756,0.00022,4]
[330455943,1719423038502,-670.65744082,0.00022,4]
[330455944,1719423038514,-995.94,0.00022,4]
[330455948,1719423040042,-466.43159848,0.00021918,2]
[330455949,1719423040054,-508.56840152,0.00021918,2]
[330455950,1719423040064,-2626.53500096,0.00022,4]
[330455951,1719423040076,-4288.99875129,0.00022,4]
[330455952,1719423040088,-113781.67789954,0.00022,4]
[330455953,1719423040100,-307.07755376,0.00022,4]
[330455954,1719423040112,-312.783,0.00022,4]
[330455955,1719423040125,-16175.0,0.00022,4]
[330455961,1719423040796,-301.2531601,0.0001941,2]
[330455962,1719423040806,-301.2531601,0.0001978,2]
[330455963,1719423040816,-301.2531601,0.0001979,2]
[330455964,1719423040827,-17.00539166,0.0001979,2]
[330455965,1719423040840,-284.24776844,0.0001979,2]
[330455966,1719423040851,-301.2531601,0.0001989,2]
[330455967,1719423040861,-155.0,0.00021917,2]
[330455968,1719423040872,-22665.29702753,0.00022,4]
[330455969,1719423040909,-60434.67705094,0.00022,4]
[330455970,1719423040922,-6317.18331427,0.00022,4]
[330455971,1719423040936,-3020.41878,0.00022,4]
[330455972,1719423040948,-346.80134232,0.00022,4]
[330455973,1719423040961,-505.2624392,0.00022,4]
[330455974,1719423040975,-421.92185612,0.00022,4]
[330455975,1719423041009,-1119.14592661,0.00022,4]
[330455976,1719423041022,-500.87490691,0.00022,4]
[330455977,1719423041034,-653.28897999,0.00022,4]
[330455978,1719423041128,-301.2531601,0.0001989,2]
[330455979,1719423041139,-304.06772413,0.00022,4]
[330455980,1719423043129,-301.2531601,0.0001989,2]
[330455981,1719423043139,-212.87735512,0.0001989,2]
[330455982,1719423043293,-88.37580498,0.0001989,2]
[330455983,1719423043303,-301.2531601,0.0001989,2]
[330455984,1719423043313,-301.2531601,0.0001989,2]
[330455985,1719423043324,-301.2531601,0.0001989,2]
[330455986,1719423043334,-301.2531601,0.0001989,2]
[330455987,1719423043345,-301.2531601,0.0001989,2]
[330455988,1719423043357,-301.2531601,0.0001989,2]
[330455989,1719423043367,-301.2531601,0.0001989,2]
[330455990,1719423043377,-301.2531601,0.0001989,2]
[330455991,1719423043388,-301.2531601,0.0001989,2]
[330455992,1719423043398,-1054.20873751,0.00021511,2]
[330455993,1719423043408,-364.75419783,0.00021998,2]
[330455994,1719423043417,-6048.94610794,0.00022,4]
[330455995,1719423043431,-3096.70689464,0.00022,4]
[330455996,1719423043443,-1512.41800004,0.00022,4]
[330455997,1719423043455,-6006.0,0.00022,4]
[330455998,1719423043467,-3253.0,0.00022,4]
[330455999,1719423043563,-301.2531601,0.0001989,2]
[330456000,1719423043573,-10242.8804399,0.00022,4]
[330456001,1719423043585,-39987.72554165,0.00022,4]
[330456002,1719423043596,-565.20954435,0.00022,4]
[330456003,1719423043608,-6015.70871999,0.00022,4]
[330456004,1719423043620,-3024.041,0.00022,4]
[330456005,1719423043632,-30591.46541318,0.00022,4]
[330456006,1719423043644,-14220.0,0.00022,4]
[330456027,1719423046286,-301.2531601,0.0001989,2]
[330456028,1719423046296,-301.2531601,0.0001989,2]
[330456029,1719423046306,-301.2531601,0.0001989,2]
[330456030,1719423046315,-301.2531601,0.0001989,2]
[330456031,1719423046325,-301.2531601,0.0001989,2]
[330456032,1719423046337,-166.0,0.00020069,2]
[330456033,1719423046350,-812.0,0.00020089,2]
[330456034,1719423046361,-537.1841995,0.00020698,2]
[330456035,1719423046373,-552.00101596,0.00020698,2]
[330456036,1719423046386,-1006.13,0.00020698,2]
[330456037,1719423046400,-3944.69809722,0.00020698,2]
[330456038,1719423046412,-1154.17423497,0.00022,4]
[330456039,1719423046435,-13252.88125197,0.00022,4]
[330456040,1719423046460,-4859.54795318,0.00022,4]
[330456042,1719423047094,-3814.85959008,0.00022,4]
[330456043,1719423047106,-1675.845,0.00022,4]
[330456044,1719423047118,-611.967,0.00022,4]
[330456045,1719423047131,-1919.57705919,0.00022,4]
[330456046,1719423253634,847.25419672,0.00011,2]
[330456047,1719423253666,596.29383666,0.00011,2]
[330456048,1719423309313,68.93172593,0.00011,2]
[330456049,1719423309341,12477.88868399,0.00011,2]
[330456053,1719423545298,18449.58628171,0.00011,2]
[330456062,1719423829904,6221.87942226,0.00010193,2]
[330456064,1719423991437,887.93932126,0.00010193,2]
[330456065,1719424013250,-150.0,0.00011799,2]
[330456066,1719424013271,-39.2370055,0.00011799,2]
[330456067,1719424036822,218.22798197,0.00010193,2]
[330456071,1719424164577,209.91230076,0.00010194,2]
[330456089,1719424233077,-419.7570707,0.00011785,2]
[330456090,1719424233089,-530.44,0.00011785,2]
[330456091,1719424233101,-3776.47481706,0.00011785,2]
[330456092,1719424233111,-150.0,0.00011799,2]
[330456093,1719424233121,-150.0,0.00011799,2]
[330456094,1719424233131,-28556.45196662,0.000118,2]
[330456095,1719424233143,-618.98596418,0.00012025,2]
[330456096,1719424233152,-3757.07273122,0.00012026,2]
[330456097,1719424233161,-1251.71322753,0.00012344,2]
[330456098,1719424233171,-491.28123776,0.00012346,2]
[330456099,1719424233180,-2374.53515352,0.00012346,2]
[330456100,1719424233190,-430.07022205,0.00012353,2]
[330456101,1719424233199,-557.58197655,0.00012354,2]
[330456102,1719424233208,-576.79273475,0.0001251,2]
[330456103,1719424233218,-250.0,0.00013515,2]
[330456104,1719424233228,-18835.5,0.00013597,2]
[330456105,1719424233239,-1000.0,0.00013721,2]
[330456106,1719424233249,-150.99,0.00013721,2]
[330456107,1719424233258,-36034.159,0.000139,2]
[330456108,1719424233268,-212.1083,0.000139,2]
[330456109,1719424233278,-2500.0,0.000139,2]
[330456110,1719424233288,-332683.44796462,0.00014,2]
[330456112,1719424233300,-1039.44021398,0.00014,2]
[330456114,1719424233309,-312.20238796,0.00014482,2]
[330456116,1719424233318,-322.01,0.00014582,2]
[330456117,1719424233327,-322.01,0.00014622,2]
[330456118,1719424233336,-322.01,0.00014662,2]
[330456119,1719424233346,-322.01,0.00014702,2]
[330456120,1719424233355,-322.01,0.00014742,2]
[330456121,1719424233364,-322.01,0.00014782,2]
[330456122,1719424233373,-322.01,0.00014822,2]
[330456123,1719424233382,-322.01,0.00014862,2]
[330456124,1719424233392,-1631.61361535,0.000149,2]
[330456125,1719424233401,-322.01,0.00014902,2]
[330456126,1719424233411,-17.1959202,0.00014942,2]
[330456127,1719424233486,-304.8140798,0.00014942,2]
[330456128,1719424233496,-1461.54,0.00014969,2]
[330456130,1719424233505,-322.01,0.00014982,2]
[330456132,1719424233515,-10138.9435202,0.00015,2]
[330456164,1719424238274,-479.72957315,0.00015,2]
[330456184,1719424238478,-254.76464562,0.00015,2]
[330456187,1719424238493,-336.05198396,0.00015,2]
[330456189,1719424238508,-8680.10819153,0.00015,2]
[330456192,1719424238523,-895.88594968,0.00015,2]
[330456194,1719424238538,-443.13092382,0.00015,2]
[330456205,1719424238687,-838.98566296,0.00015,2]
[330456208,1719424238703,-26427.61264006,0.00015,2]
[330456224,1719424240436,-864.37318362,0.00015,2]
[330456226,1719424240673,-163882.63193166,0.00015,2]
[330456227,1719424240691,-6000.0,0.00015,2]
[330456257,1719424244530,-270.5367665,0.00015,2]
[330456258,1719424244695,-540.7448569,0.00015,2]
[330456266,1719424246433,-719.84129831,0.00015,2]
[330456267,1719424246445,-57440.000016,0.00015,2]
[330456268,1719424246455,-602.61,0.00015,2]
[330456269,1719424246671,-11938.11087065,0.00015,2]
[330456270,1719424246684,-1671.17631581,0.00015,2]
[330456271,1719424246695,-3693.93006249,0.00015,2]
[330456272,1719424246709,-502.00158129,0.00015,2]
[330456273,1719424246721,-28101.89231496,0.00015,2]
[330456274,1719424246732,-2073.72740834,0.00015,2]
[330456275,1719424246750,-553.56974129,0.00015,2]
[330456276,1719424246761,-5211.295748,0.00015,2]
[330456277,1719424246773,-539.07,0.00015,2]
[330456278,1719424246785,-6445.1,0.00015,2]
[330456279,1719424246797,-5199.61708795,0.00015,2]
[330456293,1719424247015,-2722.38164255,0.00015,2]
[330456294,1719424247027,-1409.06926617,0.00015,2]
[330456295,1719424397761,200.0,0.00025997,120]
[330456298,1719424708978,527.94009131,0.00010193,2]
[330456302,1719424870270,155.56950982,0.00010194,2]
[330456306,1719424965969,155.97820346,0.00010194,2]
[330456320,1719425348012,430.54118397,0.00010194,2]
[330456333,1719425432798,-306.26,0.00011969,2]
[330456334,1719425432810,-1739.06106897,0.00011969,2]
[330456335,1719425432820,-169.52855366,0.00012144,2]
[330456336,1719425432830,-189.23515969,0.00012243,2]
[330456337,1719425432839,-175.48545791,0.00012243,2]
[330456338,1719425432848,-283.46778865,0.00012346,2]
[330456339,1719425432858,-157.51550643,0.0001475,2]
[330456340,1719425432867,-76.04705377,0.00014849,2]
[330456341,1719425432879,-223.95294623,0.00014849,2]
[330456342,1719425432889,-12985.75989574,0.0001485,2]
[330456343,1719425432901,-493.5770007,0.0001485,2]
[330456344,1719425432918,-264.82796935,0.0001485,2]
[330456345,1719425432930,-294.08982411,0.0001485,2]
[330456346,1719425432942,-283.87982098,0.0001485,2]
[330456347,1719425432954,-1175.44933757,0.0001485,2]
[330456348,1719425432966,-909.3594811,0.0001485,2]
[330456349,1719425432978,-22737.72895834,0.0001485,2]
[330456350,1719425432987,-13537.0,0.00014869,2]
[330456351,1719425432997,-255.14,0.00014889,2]
[330456352,1719425433007,-1000.0,0.00014899,2]
[330456353,1719425433017,-40181.1079,0.000149,2]
[330456354,1719425433027,-342.6159,0.000149,2]
[330456355,1719425433036,-1000.0,0.000149,2]
[330456356,1719425433046,-1495.64581408,0.000149,2]
[330456357,1719425433056,-157.51550642,0.000149,2]
[330456358,1719425433066,-2324.4028,0.000149,2]
[330456359,1719425433076,-312.20238795,0.000149,2]
[330456360,1719425433086,-2008.77783119,0.000149,2]
[330456361,1719425433095,-220.05,0.00014904,3]
[330456362,1719425433105,-167.62086349,0.0001499,2]
[330456363,1719425433115,-284075.56072019,0.00015,2]
[330456387,1719425438664,-163.58641568,0.00012242,2]
[330456388,1719425438674,-15179.57358432,0.000149,2]
[330456389,1719425438686,-500.6964493,0.000149,2]
[330456390,1719425438698,-384.39306398,0.000149,2]
[330456391,1719425438710,-712.39833394,0.000149,2]
[330456392,1719425438722,-5636.36146083,0.000149,2]
[330456393,1719425438733,-464.58898707,0.000149,2]
[330456396,1719425438919,-952.2879548,0.000149,2]
[330456399,1719425438932,-6755.01184684,0.000149,2]
[330456401,1719425440907,-392.09773169,0.000149,2]
[330456402,1719425440918,-814.94378376,0.000149,2]
[330456403,1719425440931,-690.42913706,0.000149,2]
[330456404,1719425440942,-3199.0973326,0.000149,2]
[330456405,1719425440954,-3922.05,0.000149,2]
[330456425,1719425443931,-6596.28060567,0.000149,2]
[330456427,1719425444154,-320.80343915,0.000149,2]
[330456429,1719425444166,-18356.45278899,0.000149,2]
[330456431,1719425444176,-240.93619682,0.000149,2]
[330456433,1719425444187,-427.27826849,0.000149,2]
[330456435,1719425444196,-17638.80770908,0.00015,2]
[330456453,1719425446797,-3299.06240855,0.00015,2]
[330456454,1719425446809,-549.65353905,0.00015,2]
[330456455,1719425446821,-8457.22941773,0.00015,2]
[330456456,1719425446833,-284.2125,0.00015,2]
[330456457,1719425446844,-431.96925012,0.00015,2]
[330456459,1719425447507,-1752.76552641,0.00015,2]
[330456460,1719425447520,-1211.81700269,0.00015,2]
[330456461,1719425447532,-1205.34968019,0.00015,2]
[330456462,1719425447593,-1396.7364109,0.00015,2]
[330456470,1719425853072,6220.54215746,0.00010193,2]
[330456475,1719426130774,1133.60989333,0.00010193,2]
[330456476,1719426150529,269.30966923,0.00010194,2]
[330456478,1719426370671,491.40431693,0.00010193,2]
[330456479,1719426518769,1263.2464365,0.00010193,2]
[330456491,1719426608755,155.27214365,0.00010194,2]
[330456492,1719426615927,-308.16990144,0.00011099,2]
[330456493,1719426615950,-300.0,0.00011275,2]
[330456494,1719426615972,-155.3132799,0.00011276,2]
[330456495,1719426615994,-183626.34654042,0.00011276,2]
[330456502,1719426632250,-1951.14740453,0.00011276,2]
[330456503,1719426632262,-1565.31339387,0.00011276,2]
[330456504,1719426632273,-11939.34029631,0.00011276,2]
[330456505,1719426632284,-13281.10235801,0.00011276,2]
[330456506,1719426632295,-811.05669613,0.00011276,2]
[330456507,1719426632307,-641.37290133,0.00011276,2]
[330456508,1719426632318,-15304.14838772,0.00011276,2]
[330456509,1719426632329,-3602.44257493,0.00011276,2]
[330456510,1719426632340,-20219.99783234,0.00011276,2]
[330456511,1719426632430,-472.04,0.00011276,2]
[330456513,1719426632441,-250.48725582,0.00011276,2]
[330456514,1719426632454,-418.54007673,0.00011276,2]
[330456515,1719426632466,-553.94826407,0.00011276,2]
[330456516,1719426632477,-167973.86515541,0.00011276,2]
[330456517,1719426632488,-1270.36620858,0.00011276,2]
[330456518,1719426632500,-35583.43348089,0.00011276,2]
[330456519,1719426632511,-11356.46133304,0.00011276,2]
[330456520,1719426632529,-388687.25009187,0.00011276,2]
[330456521,1719426632538,-572.0,0.00011277,2]
[330456522,1719426632547,-158.68474394,0.00011785,2]
[330456523,1719426632557,-277.03532504,0.00011799,2]
[330456524,1719426632566,-430.54118397,0.00011969,2]
[330456525,1719426632576,-532.10139623,0.00012299,2]
[330456526,1719426632585,-529.95804437,0.00012299,2]
[330456527,1719426632595,-1450.25690861,0.000123,2]
[330456528,1719426632606,-167.62086348,0.00012336,2]
[330456529,1719426632616,-1251.71322753,0.00012344,2]
[330456530,1719426632626,-368.59840723,0.00012346,2]
[330456531,1719426632635,-19608.51382202,0.00012346,2]
[330456532,1719426632644,-499.99,0.00012346,2]
[330456533,1719426632654,-690.00328514,0.00012347,2]
[330456534,1719426632664,-352.90432574,0.00012347,2]
[330456535,1719426632674,-420.0,0.00012386,2]
[330456536,1719426632684,-250.0,0.00012833,2]
[330456537,1719426632695,-373.86848492,0.000129,2]
[330456538,1719426632705,-250.0,0.00012943,2]
[330456539,1719426632714,-1000.0,0.00013096,2]
[330456540,1719426632724,-173.17,0.00013156,2]
[330456541,1719426632734,-572.0,0.0001354,2]
[330456542,1719426632743,-587.72466878,0.0001358,2]
[330456543,1719426632752,-587.72466879,0.0001358,2]
[330456544,1719426632761,-152.53,0.00013602,2]
[330456545,1719426632770,-587.0,0.00013607,2]
[330456546,1719426632779,-2642.04,0.00013625,2]
[330456547,1719426632789,-373.86848489,0.00013634,2]
[330456548,1719426632798,-152.53,0.00013641,2]
[330456549,1719426632807,-152.53,0.0001368,2]
[330456550,1719426632816,-382.71,0.00013699,2]
[330456551,1719426632826,-152.53,0.0001372,2]
[330456552,1719426632836,-152.53,0.00013759,2]
[330456553,1719426632845,-1807.90004808,0.0001379,2]
[330456554,1719426632855,-1807.90004802,0.0001379,2]
[330456555,1719426632864,-152.53,0.00013798,2]
[330456556,1719426632873,-521.50645099,0.00013799,2]
[330456557,1719426632882,-521.50645099,0.00013799,2]
[330456558,1719426632892,-521.50645099,0.00013799,2]
[330456559,1719426632901,-203.2,0.00013834,2]
[330456560,1719426632910,-152.53,0.00013838,2]
[330456561,1719426632919,-152.53,0.00013877,2]
[330456562,1719426632928,-152.53,0.00013917,2]
[330456563,1719426632938,-152.53,0.00013956,2]
[330456564,1719426632948,-152.53,0.00013995,2]
[330456565,1719426632957,-152.53,0.00014035,2]
[330456566,1719426632966,-294.79,0.00014056,2]
[330456567,1719426632976,-152.53,0.00014074,2]
[330456568,1719426632985,-152.53,0.00014113,2]
[330456569,1719426632994,-152.53,0.00014153,2]
[330456570,1719426633003,-152.53,0.00014192,2]
[330456571,1719426633012,-152.53,0.00014232,2]
[330456572,1719426633022,-152.53,0.00014271,2]
[330456573,1719426633031,-152.53,0.0001431,2]
[330456574,1719426633040,-156.217,0.00014372,2]
[330456575,1719426633049,-156.217,0.00014377,2]
[330456576,1719426633059,-156.217,0.00014383,2]
[330456577,1719426633068,-1807.90004802,0.00014392,2]
[330456578,1719426633078,-727.253695,0.00014521,2]
[330456579,1719426633087,-169.17,0.00014576,2]
[330456580,1719426633096,-5638.0,0.00014726,2]
[330456581,1719426633106,-1000.0,0.00014733,2]
[330456582,1719426633115,-521.50645099,0.00014751,2]
[330456583,1719426633124,-2241.00932175,0.00014822,2]
[330456584,1719426633134,-175.87,0.00014862,2]
[330456585,1719426633143,-179.8692053,0.00014899,2]
[330456586,1719426633153,-1000.0,0.000149,2]
[330456587,1719426633163,-245000.0,0.000149,2]
[330456588,1719426633172,-181.44669515,0.000149,2]
[330456589,1719426633181,-271.34266938,0.000149,2]
[330456590,1719426633190,-823.0,0.00014949,2]
[330456591,1719426633199,-167.62086348,0.0001499,2]
[330456592,1719426633211,-150.0,0.00014999,2]
[330456593,1719426633220,-267853.05973788,0.00015,2]
[330456594,1719426633232,-418.9295176,0.00015,2]
[330456595,1719426637977,-5161.85540894,0.00015,2]
[330456596,1719426637988,-719.922077,0.00015,2]
[330456597,1719426638000,-623.44199861,0.00015,2]
[330456598,1719426638012,-6672.78909999,0.00015,2]
[330456599,1719426638024,-1138.47,0.00015,2]
[330456600,1719426638035,-3146.7938,0.00015,2]
[330456601,1719426638048,-30082.50000003,0.00015,2]
[330456602,1719426638059,-394.14575585,0.00015,2]
[330456603,1719426638071,-321.89,0.00015,2]
[330456604,1719426638084,-1009226.76651558,0.00015,2]
[330456630,1719426638510,-31769.89228542,0.00015,2]
[330456632,1719426638529,-292.04521374,0.00015,2]
[330456670,1719426639977,-148704.22827191,0.00015,2]
[330456671,1719426639989,-10693.98449672,0.00015,2]
[330456672,1719426640185,-1968028.20184593,0.00015,2]
[330456673,1719426640195,-12888.6721357,0.00015,2]
[330456674,1719426640206,-600.0,0.00015,2]
[330456675,1719426640215,-169.55934429,0.00015,2]
[330456676,1719426640225,-2355.25327,0.00015,2]
[330456677,1719426640235,-373.86848489,0.00015011,2]
[330456678,1719426640245,-727.253695,0.00015342,2]
[330456679,1719426640255,-1807.90004802,0.00015465,2]
[330456680,1719426640266,-2241.00932167,0.00015465,2]
[330456681,1719426640276,-600.0,0.000155,2]
[330456682,1719426640286,-572.0,0.00015804,2]
[330456683,1719426640296,-521.50645099,0.00015942,2]
[330456684,1719426640305,-2355.25327,0.0001602,2]
[330456685,1719426640316,-2241.00932167,0.00016109,2]
[330456686,1719426640326,-727.253695,0.00016164,2]
[330456687,1719426640337,-1000.0,0.0001637,2]